[Event "Titled Tuesday Blitz May 03 Late 2022"]
[White "Koelle, Tobias"]
[Black "Jacobson, Aaron"]
[WhiteFideId "16207378"]
[BlackFideId "2089912"]
[WhiteElo "2541"]
[BlackElo "2265"]
[Result "1-0"]
[Round "08"]
[TimeControl "180+1"]
[Date "2022.05.03"]
[WhiteClock "0:03:22"]
[BlackClock "0:01:54"]

1. a3 {[%clk 0:03:00]}  g5 {[%clk 0:02:58]} 2. d4 {[%clk 0:02:58]}  Bg7 {[%clk 0:02:52]} 3. Bxg5 {[%clk 0:02:57]}  c5 {[%clk 0:02:52]} 4. c3 {[%clk 0:02:48]}  Qb6 {[%clk 0:02:40]} 5. Nd2 {[%clk 0:02:41]}  Qxb2 {[%clk 0:02:32]} 6. Ngf3 {[%clk 0:02:38]}  Qxc3 {[%clk 0:02:26]} 7. Rc1 {[%clk 0:02:36]}  Qxa3 {[%clk 0:02:23]} 8. Rxc5 {[%clk 0:02:36]}  Nc6 {[%clk 0:02:22]} 9. e3 {[%clk 0:02:36]}  Nf6 {[%clk 0:02:09]} 10. Be2 {[%clk 0:02:33]}  d6 {[%clk 0:01:44]} 11. Rc1 {[%clk 0:02:31]}  Qa5 {[%clk 0:01:35]} 12. O-O {[%clk 0:02:29]}  O-O {[%clk 0:01:34]} 13. Nc4 {[%clk 0:02:27]}  Qd8 {[%clk 0:01:33]} 14. Bd3 {[%clk 0:02:26]}  Bd7 {[%clk 0:01:08]} 15. Qb3 {[%clk 0:02:22]}  b5 {[%clk 0:01:06]} 16. Na3 {[%clk 0:02:20]}  a6 {[%clk 0:01:06]} 17. Qb1 {[%clk 0:02:19]}  h6 {[%clk 0:01:05]} 18. Bh4 {[%clk 0:02:19]}  Qa5 {[%clk 0:00:59]} 19. Nc2 {[%clk 0:02:16]}  e5 {[%clk 0:00:53]} 20. dxe5 {[%clk 0:02:08]}  Nxe5 {[%clk 0:00:49]} 21. Ncd4 {[%clk 0:02:00]}  Nxd3 {[%clk 0:00:45]} 22. Qxd3 {[%clk 0:02:01]}  Qb6 {[%clk 0:00:45]} 23. Nf5 {[%clk 0:02:01]}  Bxf5 {[%clk 0:00:41]} 24. Qxf5 {[%clk 0:02:02]}  d5 {[%clk 0:00:42]} 25. Nd4 {[%clk 0:02:01]}  Rfd8 {[%clk 0:00:34]} 26. Rc6 {[%clk 0:02:01]}  Qb7 {[%clk 0:00:16]} 27. Bxf6 {[%clk 0:01:55]}  b4 {[%clk 0:00:14]} 28. Bxg7 {[%clk 0:01:50]}  Qb6 {[%clk 0:00:14]} 29. Rxb6 {[%clk 0:01:50]}  Rd6 {[%clk 0:00:14]} 30. Rxd6 {[%clk 0:01:50]}  Rc8 {[%clk 0:00:15]} 31. Qxc8+ {[%clk 0:01:50]}  Kh7 {[%clk 0:00:16]} 32. Qc5 {[%clk 0:01:50]}  b3 {[%clk 0:00:15]} 33. Qxd5 {[%clk 0:01:51]}  b2 {[%clk 0:00:16]} 34. Qb3 {[%clk 0:01:52]}  a5 {[%clk 0:00:17]} 35. Qxb2 {[%clk 0:01:52]}  h5 {[%clk 0:00:18]} 36. Qb1+ {[%clk 0:01:53]}  f5 {[%clk 0:00:18]} 37. Qxf5+ {[%clk 0:01:52]}  Kg8 {[%clk 0:00:19]} 38. Qf8+ {[%clk 0:01:52]}  Kh7 {[%clk 0:00:20]} 39. Qg8+ {[%clk 0:01:53]}  Kxg8 {[%clk 0:00:20]} 40. g4 {[%clk 0:01:53]}  h4 {[%clk 0:00:20]} 41. Kg2 {[%clk 0:01:50]}  a4 {[%clk 0:00:21]} 42. Ra6 {[%clk 0:01:50]}  a3 {[%clk 0:00:22]} 43. Rxa3 {[%clk 0:01:51]}  Kh7 {[%clk 0:00:23]} 44. h3 {[%clk 0:01:51]}  Kg6 {[%clk 0:00:24]} 45. Be5 {[%clk 0:01:51]}  Kh7 {[%clk 0:00:24]} 46. Bh2 {[%clk 0:01:52]}  Kg6 {[%clk 0:00:25]} 47. Bg1 {[%clk 0:01:53]}  Kh7 {[%clk 0:00:26]} 48. f3 {[%clk 0:01:54]}  Kg6 {[%clk 0:00:27]} 49. Bf2 {[%clk 0:01:55]}  Kh7 {[%clk 0:00:28]} 50. Re1 {[%clk 0:01:55]}  Kg6 {[%clk 0:00:28]} 51. Rd1 {[%clk 0:01:56]}  Kh7 {[%clk 0:00:29]} 52. Rd2 {[%clk 0:01:57]}  Kg6 {[%clk 0:00:30]} 53. Rdd3 {[%clk 0:01:58]}  Kh7 {[%clk 0:00:31]} 54. Rdc3 {[%clk 0:01:59]}  Kg6 {[%clk 0:00:32]} 55. Rc4 {[%clk 0:02:00]}  Kh7 {[%clk 0:00:33]} 56. Rc5 {[%clk 0:02:01]}  Kg6 {[%clk 0:00:33]} 57. Rb5 {[%clk 0:02:02]}  Kh7 {[%clk 0:00:34]} 58. Ra4 {[%clk 0:02:03]}  Kg6 {[%clk 0:00:35]} 59. Raa5 {[%clk 0:02:04]}  Kh7 {[%clk 0:00:36]} 60. Ra6 {[%clk 0:02:04]}  Kg7 {[%clk 0:00:37]} 61. Rb7+ {[%clk 0:02:05]}  Kf8 {[%clk 0:00:38]} 62. Raa7 {[%clk 0:02:06]}  Ke8 {[%clk 0:00:38]} 63. f4 {[%clk 0:02:07]}  Kd8 {[%clk 0:00:39]} 64. Bxh4+ {[%clk 0:02:07]}  Ke8 {[%clk 0:00:40]} 65. Bg3 {[%clk 0:02:08]}  Kd8 {[%clk 0:00:41]} 66. Bf2 {[%clk 0:02:09]}  Kc8 {[%clk 0:00:42]} 67. Be1 {[%clk 0:02:10]}  Kd8 {[%clk 0:00:43]} 68. Bd2 {[%clk 0:02:11]}  Kc8 {[%clk 0:00:44]} 69. Bc3 {[%clk 0:02:12]}  Kd8 {[%clk 0:00:44]} 70. Kf3 {[%clk 0:02:12]}  Kc8 {[%clk 0:00:45]} 71. Ke4 {[%clk 0:02:13]}  Kd8 {[%clk 0:00:46]} 72. Kd5 {[%clk 0:02:14]}  Kc8 {[%clk 0:00:47]} 73. Kc6 {[%clk 0:02:15]}  Kd8 {[%clk 0:00:48]} 74. Kd6 {[%clk 0:02:15]}  Kc8 {[%clk 0:00:49]} 75. Ke6 {[%clk 0:02:16]}  Kd8 {[%clk 0:00:49]} 76. Kf6 {[%clk 0:02:17]}  Kc8 {[%clk 0:00:50]} 77. Kg6 {[%clk 0:02:18]}  Kd8 {[%clk 0:00:51]} 78. Kh6 {[%clk 0:02:19]}  Kc8 {[%clk 0:00:52]} 79. h4 {[%clk 0:02:20]}  Kd8 {[%clk 0:00:53]} 80. h5 {[%clk 0:02:21]}  Kc8 {[%clk 0:00:54]} 81. g5 {[%clk 0:02:22]}  Kd8 {[%clk 0:00:55]} 82. g6 {[%clk 0:02:23]}  Kc8 {[%clk 0:00:56]} 83. g7 {[%clk 0:02:24]}  Kd8 {[%clk 0:00:57]} 84. Kg6 {[%clk 0:02:24]}  Kc8 {[%clk 0:00:57]} 85. h6 {[%clk 0:02:25]}  Kd8 {[%clk 0:00:58]} 86. h7 {[%clk 0:02:26]}  Kc8 {[%clk 0:00:59]} 87. f5 {[%clk 0:02:27]}  Kd8 {[%clk 0:01:00]} 88. Kg5 {[%clk 0:02:27]}  Kc8 {[%clk 0:01:01]} 89. Kg4 {[%clk 0:02:28]}  Kd8 {[%clk 0:01:02]} 90. Kf4 {[%clk 0:02:29]}  Kc8 {[%clk 0:01:03]} 91. Ke4 {[%clk 0:02:30]}  Kd8 {[%clk 0:01:04]} 92. Kd5 {[%clk 0:02:31]}  Kc8 {[%clk 0:01:05]} 93. Kc5 {[%clk 0:02:32]}  Kd8 {[%clk 0:01:06]} 94. Kc6 {[%clk 0:02:33]}  Kc8 {[%clk 0:01:06]} 95. Kb6 {[%clk 0:02:34]}  Kd8 {[%clk 0:01:07]} 96. Ka6 {[%clk 0:02:35]}  Kc8 {[%clk 0:01:08]} 97. Ka5 {[%clk 0:02:35]}  Kd8 {[%clk 0:01:09]} 98. Ka4 {[%clk 0:02:36]}  Kc8 {[%clk 0:01:10]} 99. Ka3 {[%clk 0:02:37]}  Kd8 {[%clk 0:01:11]} 100. Ka2 {[%clk 0:02:38]}  Kc8 {[%clk 0:01:12]} 101. Kb2 {[%clk 0:02:39]}  Kd8 {[%clk 0:01:13]} 102. Kb1 {[%clk 0:02:40]}  Kc8 {[%clk 0:01:14]} 103. Kc1 {[%clk 0:02:41]}  Kd8 {[%clk 0:01:15]} 104. Kc2 {[%clk 0:02:42]}  Kc8 {[%clk 0:01:15]} 105. Kd2 {[%clk 0:02:43]}  Kd8 {[%clk 0:01:16]} 106. Kd1 {[%clk 0:02:44]}  Kc8 {[%clk 0:01:17]} 107. Ke1 {[%clk 0:02:44]}  Kd8 {[%clk 0:01:18]} 108. Ke2 {[%clk 0:02:45]}  Kc8 {[%clk 0:01:18]} 109. Kf2 {[%clk 0:02:46]}  Kd8 {[%clk 0:01:19]} 110. e4 {[%clk 0:02:47]}  Kc8 {[%clk 0:01:20]} 111. e5 {[%clk 0:02:48]}  Kd8 {[%clk 0:01:21]} 112. e6 {[%clk 0:02:49]}  Kc8 {[%clk 0:01:22]} 113. f6 {[%clk 0:02:50]}  Kd8 {[%clk 0:01:23]} 114. Kf3 {[%clk 0:02:51]}  Kc8 {[%clk 0:01:24]} 115. Ke4 {[%clk 0:02:52]}  Kd8 {[%clk 0:01:25]} 116. Kd5 {[%clk 0:02:53]}  Kc8 {[%clk 0:01:25]} 117. Kc6 {[%clk 0:02:53]}  Kd8 {[%clk 0:01:26]} 118. Nb5 {[%clk 0:02:54]}  Kc8 {[%clk 0:01:27]} 119. Na3 {[%clk 0:02:55]}  Kd8 {[%clk 0:01:28]} 120. Nc2 {[%clk 0:02:56]}  Kc8 {[%clk 0:01:29]} 121. Ne1 {[%clk 0:02:57]}  Kd8 {[%clk 0:01:30]} 122. Nd3 {[%clk 0:02:58]}  Kc8 {[%clk 0:01:31]} 123. Nf2 {[%clk 0:02:59]}  Kd8 {[%clk 0:01:32]} 124. Ne4 {[%clk 0:03:00]}  Kc8 {[%clk 0:01:33]} 125. Ng5 {[%clk 0:03:01]}  Kd8 {[%clk 0:01:34]} 126. Nf3 {[%clk 0:03:02]}  Kc8 {[%clk 0:01:34]} 127. Ne5 {[%clk 0:03:02]}  Kd8 {[%clk 0:01:35]} 128. Ng4 {[%clk 0:03:03]}  Kc8 {[%clk 0:01:36]} 129. Nh2 {[%clk 0:03:04]}  Kd8 {[%clk 0:01:37]} 130. Nf1 {[%clk 0:03:05]}  Kc8 {[%clk 0:01:38]} 131. Bd2 {[%clk 0:03:06]}  Kd8 {[%clk 0:01:39]} 132. Be1 {[%clk 0:03:07]}  Kc8 {[%clk 0:01:40]} 133. Bg3 {[%clk 0:03:08]}  Kd8 {[%clk 0:01:41]} 134. Bf4 {[%clk 0:03:09]}  Kc8 {[%clk 0:01:42]} 135. Be3 {[%clk 0:03:09]}  Kd8 {[%clk 0:01:42]} 136. Bf2 {[%clk 0:03:10]}  Kc8 {[%clk 0:01:43]} 137. f7 {[%clk 0:03:11]}  Kd8 {[%clk 0:01:44]} 138. Be3 {[%clk 0:03:12]}  Kc8 {[%clk 0:01:45]} 139. Bf2 {[%clk 0:03:13]}  Kd8 {[%clk 0:01:46]} 140. Bg1 {[%clk 0:03:13]}  Kc8 {[%clk 0:01:47]} 141. Nd2 {[%clk 0:03:14]}  Kd8 {[%clk 0:01:48]} 142. Nf1 {[%clk 0:03:15]}  Kc8 {[%clk 0:01:49]} 143. Ne3 {[%clk 0:03:16]}  Kd8 {[%clk 0:01:49]} 144. Nd5 {[%clk 0:03:17]}  Kc8 {[%clk 0:01:50]} 145. Nc3 {[%clk 0:03:18]}  Kd8 {[%clk 0:01:51]} 146. Nb5 {[%clk 0:03:19]}  Kc8 {[%clk 0:01:52]} 147. Na3 {[%clk 0:03:20]}  Kd8 {[%clk 0:01:53]} 148. Nc2 {[%clk 0:03:21]}  Kc8 {[%clk 0:01:54]} 149. Nb4 {[%clk 0:03:22]}  Kd8 {[%clk 0:01:54]} 150. Ra8# {[%clk 0:03:22]} 1-0


[Site "https://www.chess.com"]

[Event "Titled Tuesday Blitz May 03 Late 2022"]
[White "Leiva, Gianmarco"]
[Black "Martinez Reyes, Pedro Ramon"]
[WhiteFideId "3804399"]
[BlackFideId "3901807"]
[WhiteElo "2323"]
[BlackElo "2410"]
[Result "1-0"]
[Round "08"]
[TimeControl "180+1"]
[Date "2022.05.03"]
[WhiteClock "0:00:50"]
[BlackClock "0:01:39"]

1. Nf3 {[%clk 0:03:00]}  c5 {[%clk 0:03:00]} 2. g3 {[%clk 0:03:01]}  Nc6 {[%clk 0:03:00]} 3. Bg2 {[%clk 0:03:02]}  g6 {[%clk 0:03:01]} 4. O-O {[%clk 0:03:02]}  Bg7 {[%clk 0:03:02]} 5. d3 {[%clk 0:03:02]}  Nf6 {[%clk 0:03:02]} 6. c4 {[%clk 0:03:02]}  O-O {[%clk 0:03:02]} 7. Nc3 {[%clk 0:03:03]}  d5 {[%clk 0:03:02]} 8. Bg5 {[%clk 0:03:02]}  d4 {[%clk 0:03:01]} 9. Bxf6 {[%clk 0:03:03]}  exf6 {[%clk 0:03:02]} 10. Na4 {[%clk 0:03:02]}  Qe7 {[%clk 0:03:02]} 11. Nd2 {[%clk 0:03:01]}  Re8 {[%clk 0:03:00]} 12. Ne4 {[%clk 0:02:56]}  f5 {[%clk 0:02:50]} 13. Nexc5 {[%clk 0:02:56]}  Qxe2 {[%clk 0:02:51]} 14. Re1 {[%clk 0:02:56]}  Qxd1 {[%clk 0:02:46]} 15. Raxd1 {[%clk 0:02:56]}  Rxe1+ {[%clk 0:02:47]} 16. Rxe1 {[%clk 0:02:57]}  Kf8 {[%clk 0:02:47]} 17. a3 {[%clk 0:02:53]}  Ne5 {[%clk 0:02:30]} 18. h3 {[%clk 0:02:24]}  g5 {[%clk 0:02:25]} 19. Nxb7 {[%clk 0:01:40]}  Bxb7 {[%clk 0:02:21]} 20. Bxb7 {[%clk 0:01:39]}  Rb8 {[%clk 0:02:21]} 21. Nc5 {[%clk 0:01:36]}  f4 {[%clk 0:02:06]} 22. gxf4 {[%clk 0:01:28]}  gxf4 {[%clk 0:02:07]} 23. Rxe5 {[%clk 0:01:27]}  Bxe5 {[%clk 0:02:05]} 24. Nd7+ {[%clk 0:01:28]}  Ke7 {[%clk 0:02:06]} 25. Nxb8 {[%clk 0:01:27]}  Bxb8 {[%clk 0:02:07]} 26. Kg2 {[%clk 0:01:22]}  Kf6 {[%clk 0:02:07]} 27. Kf3 {[%clk 0:01:22]}  Kg5 {[%clk 0:02:08]} 28. Ke4 {[%clk 0:01:21]}  f6 {[%clk 0:01:53]} 29. b4 {[%clk 0:01:19]}  Be5 {[%clk 0:01:53]} 30. c5 {[%clk 0:01:15]}  Kg6 {[%clk 0:01:44]} 31. Bd5 {[%clk 0:01:09]}  Kg7 {[%clk 0:01:43]} 32. b5 {[%clk 0:01:07]}  Kf8 {[%clk 0:01:43]} 33. a4 {[%clk 0:00:58]}  Ke7 {[%clk 0:01:43]} 34. Bb3 {[%clk 0:00:53]}  Kd7 {[%clk 0:01:43]} 35. Kd5 {[%clk 0:00:53]}  Kc7 {[%clk 0:01:43]} 36. a5 {[%clk 0:00:52]}  f3 {[%clk 0:01:40]} 37. Bd1 {[%clk 0:00:50]}  Bf4 {[%clk 0:01:37]} 38. Bxf3 {[%clk 0:00:50]}  Bd2 {[%clk 0:01:37]} 39. b6+ {[%clk 0:00:51]}  axb6 {[%clk 0:01:38]} 40. axb6+ {[%clk 0:00:51]}  Kb8 {[%clk 0:01:39]} 41. c6 {[%clk 0:00:50]}  Be1 {[%clk 0:01:39]} 42. c7+ {[%clk 0:00:50]}  Kc8 {[%clk 0:01:39]} 43. Kc6 {[%clk 0:00:50]}  Bxf2 {[%clk 0:01:39]} 44. b7# {[%clk 0:00:50]} 1-0


[Site "https://www.chess.com"]

[Event "Titled Tuesday Blitz May 03 Late 2022"]
[White "Maksimovic, Bojan"]
[Black "Koellner, Ruben Gideon"]
[WhiteFideId "14408120"]
[BlackFideId "12993093"]
[WhiteElo "2448"]
[BlackElo "2615"]
[Result "1-0"]
[Round "08"]
[TimeControl "180+1"]
[Date "2022.05.03"]
[WhiteClock "0:00:36"]
[BlackClock "0:00:28"]

1. Nf3 {[%clk 0:03:00]}  Nf6 {[%clk 0:02:59]} 2. g3 {[%clk 0:03:01]}  d5 {[%clk 0:02:58]} 3. Bg2 {[%clk 0:03:01]}  e6 {[%clk 0:02:58]} 4. O-O {[%clk 0:03:01]}  Be7 {[%clk 0:02:57]} 5. c4 {[%clk 0:03:01]}  dxc4 {[%clk 0:02:56]} 6. Qa4+ {[%clk 0:02:57]}  Bd7 {[%clk 0:02:48]} 7. Qxc4 {[%clk 0:02:57]}  c5 {[%clk 0:02:46]} 8. Ne5 {[%clk 0:02:56]}  Qc8 {[%clk 0:02:46]} 9. Nxd7 {[%clk 0:02:49]}  Qxd7 {[%clk 0:02:44]} 10. Qc2 {[%clk 0:02:42]}  Nc6 {[%clk 0:02:42]} 11. Nc3 {[%clk 0:02:43]}  O-O {[%clk 0:02:41]} 12. d3 {[%clk 0:02:43]}  Rfd8 {[%clk 0:02:39]} 13. Be3 {[%clk 0:02:43]}  Rac8 {[%clk 0:02:38]} 14. Rac1 {[%clk 0:02:40]}  b6 {[%clk 0:02:36]} 15. Qa4 {[%clk 0:02:18]}  Nd5 {[%clk 0:02:22]} 16. Nxd5 {[%clk 0:02:11]}  exd5 {[%clk 0:02:23]} 17. Rfe1 {[%clk 0:02:03]}  Bf6 {[%clk 0:02:21]} 18. Qc2 {[%clk 0:01:41]}  Nb4 {[%clk 0:02:07]} 19. Qb1 {[%clk 0:01:38]}  Qa4 {[%clk 0:02:06]} 20. a3 {[%clk 0:01:35]}  Nc6 {[%clk 0:02:05]} 21. Qa2 {[%clk 0:01:22]}  Nb4 {[%clk 0:02:02]} 22. Qb1 {[%clk 0:01:22]}  Nc6 {[%clk 0:02:01]} 23. Qc2 {[%clk 0:01:16]}  Qb5 {[%clk 0:01:54]} 24. b4 {[%clk 0:00:57]}  Bd4 {[%clk 0:01:12]} 25. bxc5 {[%clk 0:00:53]}  bxc5 {[%clk 0:01:12]} 26. Bd2 {[%clk 0:00:46]}  Ne7 {[%clk 0:00:54]} 27. Rb1 {[%clk 0:00:43]}  Qa6 {[%clk 0:00:51]} 28. e3 {[%clk 0:00:41]}  Bf6 {[%clk 0:00:50]} 29. a4 {[%clk 0:00:40]}  d4 {[%clk 0:00:45]} 30. Bb7 {[%clk 0:00:40]}  Qd6 {[%clk 0:00:38]} 31. Bxc8 {[%clk 0:00:40]}  Rxc8 {[%clk 0:00:37]} 32. e4 {[%clk 0:00:40]}  Qa6 {[%clk 0:00:28]} 33. e5 {[%clk 0:00:36]} 1-0


[Site "https://www.chess.com"]

[Event "Titled Tuesday Blitz May 03 Late 2022"]
[White "Matinian, Nikita"]
[Black "Fishbein, Alexander"]
[WhiteFideId "24129100"]
[BlackFideId "2000377"]
[WhiteElo "2422"]
[BlackElo "2442"]
[Result "1/2-1/2"]
[Round "08"]
[TimeControl "180+1"]
[Date "2022.05.03"]
[WhiteClock "0:00:03"]
[BlackClock "0:00:08"]

1. e4 {[%clk 0:03:00]}  c5 {[%clk 0:02:57]} 2. Nf3 {[%clk 0:03:00]}  d6 {[%clk 0:02:57]} 3. d4 {[%clk 0:03:00]}  cxd4 {[%clk 0:02:57]} 4. Nxd4 {[%clk 0:03:01]}  Nf6 {[%clk 0:02:57]} 5. Nc3 {[%clk 0:03:02]}  Nc6 {[%clk 0:02:57]} 6. Bc4 {[%clk 0:02:59]}  e6 {[%clk 0:02:57]} 7. Be3 {[%clk 0:02:58]}  a6 {[%clk 0:02:57]} 8. Qe2 {[%clk 0:02:57]}  Qc7 {[%clk 0:02:57]} 9. O-O-O {[%clk 0:02:51]}  Be7 {[%clk 0:02:56]} 10. Rhg1 {[%clk 0:02:49]}  Na5 {[%clk 0:02:55]} 11. Bd3 {[%clk 0:02:43]}  b5 {[%clk 0:02:55]} 12. g4 {[%clk 0:02:43]}  Nd7 {[%clk 0:02:50]} 13. Nf5 {[%clk 0:02:27]}  exf5 {[%clk 0:02:35]} 14. Nd5 {[%clk 0:02:27]}  Qd8 {[%clk 0:02:33]} 15. exf5 {[%clk 0:02:27]}  Bb7 {[%clk 0:02:19]} 16. Be4 {[%clk 0:02:05]}  Nc4 {[%clk 0:02:08]} 17. Bd4 {[%clk 0:02:05]}  O-O {[%clk 0:01:58]} 18. g5 {[%clk 0:01:55]}  Bxd5 {[%clk 0:01:55]} 19. Bxd5 {[%clk 0:01:51]}  Bxg5+ {[%clk 0:01:55]} 20. Kb1 {[%clk 0:01:48]}  Bf6 {[%clk 0:01:55]} 21. Bxa8 {[%clk 0:01:33]}  Qxa8 {[%clk 0:01:51]} 22. Bxf6 {[%clk 0:01:34]}  Nxf6 {[%clk 0:01:50]} 23. Qe7 {[%clk 0:01:34]}  Qd8 {[%clk 0:01:37]} 24. Rge1 {[%clk 0:01:33]}  Qxe7 {[%clk 0:01:33]} 25. Rxe7 {[%clk 0:01:34]}  Ng4 {[%clk 0:01:19]} 26. b3 {[%clk 0:01:22]}  Nb6 {[%clk 0:01:19]} 27. Ra7 {[%clk 0:01:16]}  Nxf2 {[%clk 0:01:17]} 28. Rd4 {[%clk 0:01:17]}  g6 {[%clk 0:01:05]} 29. Rxa6 {[%clk 0:01:17]}  Nc8 {[%clk 0:01:03]} 30. Ra5 {[%clk 0:01:08]}  Re8 {[%clk 0:00:53]} 31. fxg6 {[%clk 0:01:01]}  hxg6 {[%clk 0:00:52]} 32. Rxb5 {[%clk 0:01:01]}  Kg7 {[%clk 0:00:45]} 33. a4 {[%clk 0:00:55]}  Re1+ {[%clk 0:00:44]} 34. Kb2 {[%clk 0:00:56]}  Nd1+ {[%clk 0:00:44]} 35. Ka3 {[%clk 0:00:52]}  Nc3 {[%clk 0:00:41]} 36. Rb8 {[%clk 0:00:47]}  Ne7 {[%clk 0:00:41]} 37. Rxd6 {[%clk 0:00:40]}  Nf5 {[%clk 0:00:36]} 38. Rd3 {[%clk 0:00:34]}  Ne4 {[%clk 0:00:25]} 39. a5 {[%clk 0:00:34]}  Nc5 {[%clk 0:00:23]} 40. Rd5 {[%clk 0:00:13]}  Ra1+ {[%clk 0:00:22]} 41. Kb2 {[%clk 0:00:13]}  Rxa5 {[%clk 0:00:22]} 42. Rxf5 {[%clk 0:00:10]}  gxf5 {[%clk 0:00:21]} 43. b4 {[%clk 0:00:10]}  Na6 {[%clk 0:00:20]} 44. Rb6 {[%clk 0:00:09]}  Ra4 {[%clk 0:00:20]} 45. Kb3 {[%clk 0:00:09]}  Ra1 {[%clk 0:00:20]} 46. b5 {[%clk 0:00:10]}  Nc5+ {[%clk 0:00:19]} 47. Kc4 {[%clk 0:00:09]}  Nd7 {[%clk 0:00:18]} 48. Rd6 {[%clk 0:00:07]}  Ne5+ {[%clk 0:00:17]} 49. Kd5 {[%clk 0:00:06]}  f6 {[%clk 0:00:16]} 50. c4 {[%clk 0:00:06]}  Rd1+ {[%clk 0:00:14]} 51. Ke6 {[%clk 0:00:04]}  Rxd6+ {[%clk 0:00:14]} 52. Kxd6 {[%clk 0:00:05]}  Nxc4+ {[%clk 0:00:14]} 53. Kd5 {[%clk 0:00:05]}  Na5 {[%clk 0:00:14]} 54. Kd4 {[%clk 0:00:02]}  Kg6 {[%clk 0:00:13]} 55. Ke3 {[%clk 0:00:03]}  Kg5 {[%clk 0:00:13]} 56. Kf3 {[%clk 0:00:03]}  Nc4 {[%clk 0:00:14]} 57. h4+ {[%clk 0:00:02]}  Kg6 {[%clk 0:00:10]} 58. Kf4 {[%clk 0:00:03]}  Nd6 {[%clk 0:00:08]} 59. b6 {[%clk 0:00:02]}  Kh5 {[%clk 0:00:07]} 60. b7 {[%clk 0:00:02]}  Nxb7 {[%clk 0:00:07]} 61. Kxf5 {[%clk 0:00:02]}  Nd6+ {[%clk 0:00:07]} 62. Kxf6 {[%clk 0:00:03]}  Kxh4 {[%clk 0:00:08]} 1/2-1/2


[Site "https://www.chess.com"]

[Event "Titled Tuesday Blitz May 03 Late 2022"]
[White "Mekhane, Adam"]
[Black "Mogranzini, Roberto"]
[WhiteFideId "36050601"]
[BlackFideId "810894"]
[WhiteElo "2002"]
[BlackElo "2469"]
[Result "0-1"]
[Round "08"]
[TimeControl "180+1"]
[Date "2022.05.03"]
[WhiteClock "0:00:03"]
[BlackClock "0:00:19"]

1. e4 {[%clk 0:03:00]}  c5 {[%clk 0:02:59]} 2. Nf3 {[%clk 0:03:00]}  Nc6 {[%clk 0:02:59]} 3. d4 {[%clk 0:03:01]}  cxd4 {[%clk 0:03:00]} 4. Nxd4 {[%clk 0:03:01]}  Qb6 {[%clk 0:03:00]} 5. Nb3 {[%clk 0:03:00]}  Nf6 {[%clk 0:03:00]} 6. Nc3 {[%clk 0:02:58]}  e6 {[%clk 0:03:01]} 7. a3 {[%clk 0:02:51]}  a6 {[%clk 0:03:00]} 8. Be3 {[%clk 0:02:46]}  Qc7 {[%clk 0:02:59]} 9. Be2 {[%clk 0:02:47]}  d6 {[%clk 0:02:56]} 10. O-O {[%clk 0:02:46]}  Be7 {[%clk 0:02:56]} 11. f4 {[%clk 0:02:44]}  O-O {[%clk 0:02:56]} 12. Bf3 {[%clk 0:02:26]}  Re8 {[%clk 0:02:47]} 13. Qd2 {[%clk 0:02:25]}  Bd7 {[%clk 0:02:42]} 14. Rad1 {[%clk 0:02:24]}  Rac8 {[%clk 0:02:38]} 15. Qf2 {[%clk 0:02:22]}  Qb8 {[%clk 0:02:36]} 16. Na4 {[%clk 0:02:15]}  b5 {[%clk 0:02:23]} 17. Nb6 {[%clk 0:02:14]}  Rc7 {[%clk 0:02:18]} 18. Nxd7 {[%clk 0:02:12]}  Nxd7 {[%clk 0:02:17]} 19. c3 {[%clk 0:01:54]}  a5 {[%clk 0:02:10]} 20. Nd4 {[%clk 0:01:48]}  b4 {[%clk 0:02:02]} 21. cxb4 {[%clk 0:01:30]}  axb4 {[%clk 0:02:02]} 22. e5 {[%clk 0:01:13]}  Nxd4 {[%clk 0:01:54]} 23. Bxd4 {[%clk 0:01:11]}  d5 {[%clk 0:01:51]} 24. f5 {[%clk 0:01:09]}  Bc5 {[%clk 0:01:34]} 25. fxe6 {[%clk 0:01:00]}  fxe6 {[%clk 0:01:27]} 26. Bh5 {[%clk 0:00:40]}  Rf8 {[%clk 0:01:20]} 27. Bf7+ {[%clk 0:00:30]}  Kh8 {[%clk 0:01:15]} 28. Qe3 {[%clk 0:00:15]}  Bxd4 {[%clk 0:01:06]} 29. Rxd4 {[%clk 0:00:14]}  bxa3 {[%clk 0:00:59]} 30. Rh4 {[%clk 0:00:13]}  Nf6 {[%clk 0:00:47]} 31. exf6 {[%clk 0:00:11]}  Rcxf7 {[%clk 0:00:45]} 32. fxg7+ {[%clk 0:00:11]}  Rxg7 {[%clk 0:00:45]} 33. Rxf8+ {[%clk 0:00:08]}  Qxf8 {[%clk 0:00:46]} 34. Qxa3 {[%clk 0:00:08]}  Qxa3 {[%clk 0:00:39]} 35. bxa3 {[%clk 0:00:08]}  Ra7 {[%clk 0:00:38]} 36. Rh6 {[%clk 0:00:06]}  Ra6 {[%clk 0:00:38]} 37. Kf2 {[%clk 0:00:05]}  Kg7 {[%clk 0:00:38]} 38. Rh3 {[%clk 0:00:05]}  Rb6 {[%clk 0:00:31]} 39. Ke2 {[%clk 0:00:03]}  Rb2+ {[%clk 0:00:29]} 40. Kf1 {[%clk 0:00:02]}  Ra2 {[%clk 0:00:29]} 41. Re3 {[%clk 0:00:02]}  Kf6 {[%clk 0:00:28]} 42. Rh3 {[%clk 0:00:01]}  d4 {[%clk 0:00:27]} 43. Rxh7 {[%clk 0:00:01]}  Rxa3 {[%clk 0:00:26]} 44. Rh5 {[%clk 0:00:01]}  e5 {[%clk 0:00:26]} 45. g4 {[%clk 0:00:01]}  Ra2 {[%clk 0:00:25]} 46. Rf5+ {[%clk 0:00:01]}  Ke6 {[%clk 0:00:25]} 47. h4 {[%clk 0:00:02]}  d3 {[%clk 0:00:23]} 48. Ke1 {[%clk 0:00:01]}  e4 {[%clk 0:00:21]} 49. h5 {[%clk 0:00:01]}  e3 {[%clk 0:00:20]} 50. Kf1 {[%clk 0:00:01]}  Ra1+ {[%clk 0:00:18]} 51. Kg2 {[%clk 0:00:01]}  d2 {[%clk 0:00:19]} 52. Rf1 {[%clk 0:00:01]}  Rxf1 {[%clk 0:00:18]} 53. Kxf1 {[%clk 0:00:02]}  d1=Q+ {[%clk 0:00:18]} 54. Kg2 {[%clk 0:00:03]}  Qxg4+ {[%clk 0:00:19]} 0-1


[Site "https://www.chess.com"]

[Event "Titled Tuesday Blitz May 03 Late 2022"]
[White "Melikhov, Evgeny V."]
[Black "Ovezdurdyyeva, Jemal"]
[WhiteFideId "4122046"]
[BlackFideId "14001888"]
[WhiteElo "1931"]
[BlackElo "1946"]
[Result "0-1"]
[Round "08"]
[TimeControl "180+1"]
[Date "2022.05.03"]
[WhiteClock "0:00:11"]
[BlackClock "0:00:04"]

1. d4 {[%clk 0:02:50]}  Nf6 {[%clk 0:02:59]} 2. c4 {[%clk 0:02:47]}  g6 {[%clk 0:03:00]} 3. Nc3 {[%clk 0:02:44]}  d5 {[%clk 0:03:01]} 4. cxd5 {[%clk 0:02:42]}  Nxd5 {[%clk 0:03:01]} 5. e4 {[%clk 0:02:42]}  Nxc3 {[%clk 0:03:00]} 6. bxc3 {[%clk 0:02:42]}  c5 {[%clk 0:02:59]} 7. Bc4 {[%clk 0:02:42]}  Bg7 {[%clk 0:02:55]} 8. Ne2 {[%clk 0:02:40]}  Nc6 {[%clk 0:02:47]} 9. Be3 {[%clk 0:02:40]}  cxd4 {[%clk 0:02:46]} 10. cxd4 {[%clk 0:02:39]}  Qa5+ {[%clk 0:02:47]} 11. Kf1 {[%clk 0:02:31]}  O-O {[%clk 0:02:41]} 12. h4 {[%clk 0:02:30]}  h5 {[%clk 0:02:30]} 13. Bg5 {[%clk 0:02:25]}  Rd8 {[%clk 0:02:27]} 14. Qb3 {[%clk 0:02:07]}  Nxd4 {[%clk 0:02:08]} 15. Bxf7+ {[%clk 0:01:57]}  Kh7 {[%clk 0:02:08]} 16. Nxd4 {[%clk 0:01:50]}  Rxd4 {[%clk 0:02:07]} 17. Rd1 {[%clk 0:01:33]}  Rxe4 {[%clk 0:01:56]} 18. Bg8+ {[%clk 0:01:11]}  Kh8 {[%clk 0:01:54]} 19. Bd5 {[%clk 0:01:04]}  Re5 {[%clk 0:01:37]} 20. Bf4 {[%clk 0:00:45]}  Rf5 {[%clk 0:01:22]} 21. Bg5 {[%clk 0:00:44]}  Bd7 {[%clk 0:00:44]} 22. Be4 {[%clk 0:00:41]}  Re5 {[%clk 0:00:32]} 23. Bxg6 {[%clk 0:00:38]}  Rf8 {[%clk 0:00:25]} 24. Kg1 {[%clk 0:00:31]}  Re1+ {[%clk 0:00:23]} 25. Kh2 {[%clk 0:00:31]}  Rxh1+ {[%clk 0:00:17]} 26. Kxh1 {[%clk 0:00:29]}  Rxf2 {[%clk 0:00:16]} 27. Qxb7 {[%clk 0:00:24]}  Bg4 {[%clk 0:00:06]} 28. Qb8+ {[%clk 0:00:21]}  Rf8 {[%clk 0:00:06]} 29. Rb1 {[%clk 0:00:17]}  Qxa2 {[%clk 0:00:03]} 30. Qb3 {[%clk 0:00:14]}  Qxb3 {[%clk 0:00:03]} 31. Rxb3 {[%clk 0:00:14]}  Rf1+ {[%clk 0:00:04]} 32. Kh2 {[%clk 0:00:14]}  Be5+ {[%clk 0:00:05]} 33. g3 {[%clk 0:00:15]}  Rf2+ {[%clk 0:00:05]} 34. Kg1 {[%clk 0:00:15]}  Re2 {[%clk 0:00:05]} 35. Rb7 {[%clk 0:00:12]}  Bd4+ {[%clk 0:00:04]} 36. Kf1 {[%clk 0:00:12]}  Re5 {[%clk 0:00:04]} 37. Rxe7 {[%clk 0:00:11]}  Bh3# {[%clk 0:00:04]} 0-1


[Site "https://www.chess.com"]